[Event "Pia Cramling Invitational 2018"]
[Site "Stockholm"]
[Date "2018.09.01"]
[Round "3"]
[White "Arakhamia-Grant, Ketevan"]
[Black "Skripchenko, Almira"]
[Result "1/2-1/2"]
[ECO "C55"]
[WhiteElo "2323"]
[BlackElo "2371"]
[Annotator "NA"]
[PlyCount "108"]
[EventDate "2018.09.01"]
[EventType "tourn"]
[EventCountry "SWE"]
[SourceTitle "playchess.com"]
[Source "ChessBase"]
[SourceQuality "1"]
[TimeControl "1800+10"]

1. e4 {[%emt 0:00:00]} e5 {[%emt 0:00:00]} 2. Nf3 {[%emt 0:00:00]} Nc6 {[%emt 0:00:01]} 3. Bc4 {[%emt 0:00:37]} Nf6 {[%emt 0:00:14]} 4. d3 {[%emt 0:00:13]} Be7 {[%emt 0:00:10]} 5. c3 {[%emt 0:00:41]} O-O {[%emt 0:00:37]} 6. O-O {[%emt 0:00:05]} d6 {[%emt 0:01:02]} 7. Re1 {[%emt 0:00:41]} Na5 {[%emt 0:03:19]} 8. Bb5 {[%emt 0:00:04]} a6 {[%emt 0:00:02]} 9. Ba4 {[%emt 0:00:03]} b5 {[%emt 0:00:08]} 10. Bc2 {[%emt 0:00:02]} c5 {[%emt 0:00:02]} 11. Nbd2 {[%emt 0:01:03]} Re8 {[%emt 0:00:29]} 12. Nf1 {[%emt 0:00:29]} Bf8 {[%emt 0:00:14]} 13. Bg5 {[%emt 0:01:45]} h6 {[%emt 0:00:11]} 14. Bh4 {[%emt 0:00:59]} g5 {[%emt 0:03:05] C90: Closed Ruy Lopez with 7...d6: Early deviations} (14... Be7 15. Ne3 Be6 16. d4 Ng4 17. Bxe7 Rxe7 18. dxc5 Nxe3 19. fxe3 dxc5 20. Nxe5 Qc7 21. Nd3 Rd8 22. Qh5 Bc4 {½-½ (51) Motylev,A (2659)-Oparin,G (2587) Yaroslavl 2018}) 15. Bg3 {[%emt 0:00:06]} Nh5 {[%emt 0:00:03]} 16. Ne3 {[%emt 0:07:58]} Nf4 {[%emt 0:00:20]} 17. d4 {[%emt 0:01:08]} Nc6 {[%emt 0:01:40]} 18. a4 $146 {[%emt 0:06:44]} ({Predecessor:} 18. dxc5 dxc5 19. Qxd8 Rxd8 20. h4 f6 21. hxg5 hxg5 22. Bxf4 gxf4 23. Nd5 Kf7 24. a4 Bg4 25. axb5 axb5 26. Nh2 Be6 27. Rxa8 Rxa8 28. Nc7 Rb8 {½-½ (28) Larrain Cadaiz,E-Beni,A Leipzig 1960}) 18... Rb8 {[%emt 0:00:28]} 19. axb5 {[%emt 0:00:06]} axb5 {[%emt 0:00:02]} 20. dxe5 {[%emt 0:02:23]} dxe5 {[%emt 0:00:07]} 21. Qxd8 {[%emt 0:00:42]} Rxd8 {[%emt 0:01:40]} 22. Nd5 {[%emt 0:00:16]} Kg7 {[%emt 0:05:32]} 23. h4 {[%emt 0:00:36]} f6 $1 {[%emt 0:00:01]} 24. Bxf4 {[%emt 0:04:21]} exf4 {[%emt 0:00:25]} 25. Nd2 {[%emt 0:02:51]} Bd6 {[%emt 0:03:59]} 26. Bd1 $11 {[%emt 0:00:16]} Be5 {[%emt 0:05:45]} 27. Be2 {[%emt 0:00:04]} c4 {[%emt 0:00:30]} 28. Nf3 {[%emt 0:00:03]} Be6 {[%emt 0:00:15]} 29. Ra6 {[%emt 0:00:08]} Bd7 {[%emt 0:03:26]} 30. Rd1 {[%emt 0:00:02]} Be8 {[%emt 0:00:25]} 31. Nxe5 {[%emt 0:00:15]} fxe5 {[%emt 0:00:02]} 32. hxg5 {[%emt 0:00:04]} hxg5 {[%emt 0:00:02]} 33. Bg4 {[%emt 0:00:04]} Rb7 {[%emt 0:00:45]} 34. Rda1 {[%emt 0:00:26]} Rdb8 {[%emt 0:00:11]} 35. Bf5 {[%emt 0:00:17]} Ne7 {[%emt 0:00:21]} 36. Be6 {[%emt 0:00:09]} Nc6 {[%emt 0:00:03]} 37. f3 {[%emt 0:00:06]} b4 {[%emt 0:00:16]} 38. Kh2 {[%emt 0:00:15]} bxc3 {[%emt 0:00:11]} 39. bxc3 {[%emt 0:00:02]} Nd8 {[%emt 0:00:08]} 40. Bf5 {[%emt 0:00:09]} Bf7 {[%emt 0:00:03]} 41. Kh3 {[%emt 0:00:20]} Rb2 {[%emt 0:00:13]} 42. Ra7 {[%emt 0:00:09]} R8b7 {[%emt 0:00:19]} 43. Rxb7 {[%emt 0:00:13]} Rxb7 {[%emt 0:00:03]} 44. Ra4 {[%emt 0:00:05]} Nc6 {[%emt 0:00:18]} 45. Rxc4 {[%emt 0:00:18]} Ne7 {[%emt 0:00:00]} 46. Bc8 {[%emt 0:00:09]} Rb8 {[%emt 0:00:21]} 47. Bd7 {[%emt 0:00:12]} Nxd5 {[%emt 0:00:05]} 48. exd5 {[%emt 0:00:02]} Rd8 {[%emt 0:00:15]} 49. Be6 Bxe6+ {[%emt 0:00:01]} 50. dxe6 {[%emt 0:00:03]} Kf6 {[%emt 0:00:01]} 51. Rc6 {[%emt 0:00:03]} Rd2 {[%emt 0:00:04]} 52. e7+ {[%emt 0:00:27]} Kxe7 {[%emt 0:00:02]} 53. Rg6 {[%emt 0:00:01]} Rc2 {[%emt 0:00:03]} 54. Rxg5 {[%emt 0:00:05]} Kf6 1/2-1/2

[Event "Pia Cramling Invitational 2018"]
[Site "Stockholm"]
[Date "2018.09.02"]
[Round "6"]
[White "Skripchenko, Almira"]
[Black "Arakhamia-Grant, Ketevan"]
[Result "1/2-1/2"]
[ECO "B40"]
[WhiteElo "2371"]
[BlackElo "2323"]
[Annotator "NA"]
[PlyCount "79"]
[EventDate "2018.09.01"]
[EventType "tourn"]
[EventCountry "SWE"]
[SourceTitle "playchess.com"]
[Source "ChessBase"]
[SourceQuality "1"]
[TimeControl "1800+10"]

1. e4 {[%emt 0:00:00]} c5 {[%emt 0:00:02]} 2. Nf3 {[%emt 0:00:00]} e6 {[%emt 0:00:11]} 3. d3 {[%emt 0:00:16]} Nc6 {[%emt 0:02:27]} 4. c3 {[%emt 0:00:12]} d5 {[%emt 0:01:48]} 5. Qe2 {[%emt 0:00:03]} Nge7 {[%emt 0:01:31]} 6. g3 {[%emt 0:00:07]} g6 {[%emt 0:00:02]} 7. Bg2 {[%emt 0:00:21]} Bg7 {[%emt 0:00:01]} 8. Nbd2 {[%emt 0:04:54]} O-O {[%emt 0:00:38]} 9. O-O {[%emt 0:00:06]} h6 {[%emt 0:00:34] A08: Königsindisch im Anzug} 10. Re1 {[%emt 0:00:53] LiveBook: 4 Games} b6 {[%emt 0:02:16]} 11. h4 {[%emt 0:01:44]} Qc7 {[%emt 0:06:36]} 12. exd5 {[%emt 0:05:38]} (12. e5 f6 13. exf6 Rxf6 14. Nf1 Rf7 15. Ne3 e5 16. h5 g5 17. Nxg5 hxg5 18. Nxd5 Nxd5 19. Bxd5 {0-1 (38) Rojas Keim,L (2444)-Ibarra Jerez,J (2514) La Roda 2009}) 12... Nxd5 {[%emt 0:02:09]} 13. Nc4 {[%emt 0:00:13]} Bb7 {[%emt 0:00:50]} 14. a4 $146 {[%emt 0:00:04]} ({Vorgänger:} 14. h5 g5 15. Nxg5 hxg5 16. Bxg5 {1-0 (35) Demkovich,A (2341)-Khurtsidze,N (2405) Ukraina 1999}) 14... Rad8 {[%emt 0:00:11]} 15. Bd2 {[%emt 0:01:09]} Rfe8 {[%emt 0:00:10]} (15... e5 $5) 16. Nfe5 {[%emt 0:02:55]} Nxe5 {[%emt 0:01:21]} 17. Nxe5 {[%emt 0:00:02]} Ba6 {[%emt 0:00:30]} 18. a5 {[%emt 0:05:41]} bxa5 {[%emt 0:02:36]} 19. Nc4 {[%emt 0:01:13]} Nb6 $11 {[%emt 0:04:37]} 20. Bf4 {[%emt 0:00:28]} e5 $1 {[%emt 0:00:28]} 21. Bc1 {[%emt 0:02:09]} Nxc4 {[%emt 0:01:30]} 22. dxc4 {[%emt 0:00:02]} e4 {[%emt 0:00:25]} 23. Bf4 {[%emt 0:01:10]} Qb6 {[%emt 0:00:02]} 24. Be3 {[%emt 0:00:02]} f5 {[%emt 0:00:28]} 25. Ra3 {[%emt 0:00:15]} Rd3 {[%emt 0:01:29]} 26. Qc2 {[%emt 0:00:02]} Bxc4 {[%emt 0:00:30]} 27. Bf1 {[%emt 0:00:01]} Rb8 {[%emt 0:00:16]} 28. Qa4 {[%emt 0:03:00]} Bb5 {[%emt 0:00:24]} 29. Qxa5 {[%emt 0:00:03]} Rd7 {[%emt 0:00:25]} 30. c4 {[%emt 0:01:20]} Bc6 {[%emt 0:00:03]} 31. Bxc5 {[%emt 0:00:22]} Qxb2 {[%emt 0:00:05]} 32. Qa6 {[%emt 0:00:26]} Qb7 {[%emt 0:00:23]} 33. Qxa7 {[%emt 0:00:20]} Qxa7 {[%emt 0:00:14]} 34. Rxa7 {[%emt 0:00:02]} Rxa7 {[%emt 0:00:08]} 35. Bxa7 {[%emt 0:00:01]} Rb2 {[%emt 0:00:03]} 36. Be3 {[%emt 0:00:03]} Kf7 {[%emt 0:00:08]} 37. Rd1 {[%emt 0:00:04]} Ke6 {[%emt 0:00:14]} 38. Bf4 {[%emt 0:00:11]} Bf8 {[%emt 0:00:09]} 39. Be3 {[%emt 0:00:04]} h5 {[%emt 0:00:09]} 40. Ra1 {[%emt 0:00:04]} 1/2-1/2